Cogmind - Beta 16.1 @@@ ROGUE MODE // 2026.02.21 @ 14:37:46 Player: shapeshifter Result: Destroyed by XQ-2DY(R) with Subdweller Laser Performance ------------- Evolutions (0) 0 Regions Visited (3) 600 Robots Destroyed (26) 130 Value Destroyed (508) 508 Prototype IDs (0) 0 Alien Tech Used (0) 0 Bonus (0) 0 TOTAL SCORE: 1238 Bonus ------- None Cogmind --------- Core Integrity 0/250 Matter 260/300 Energy 160/160 System Corruption 0% Temperature Cool (75) Movement Rolling (95) Ox1 Location -10/Subcaves Parts ------- > --- POWER (1) -------- Light Nuclear Core > --- PROPULSION (2) --- Wheel > --- UTILITY (2) ------ Small Storage Unit > --- WEAPON (2) ------- Beam Rifle Particle Gun > --- INVENTORY (8) ---- Medium Matter Pod (100) Light Armor Plating Hacking Suite Tractor Beam Trap Extractor (0/4) Trap Extractor (0/4) Trap Extractor (0/4) Trap Extractor (0/4) Peak State ------------ > --- POWER ------------ Light Nuclear Core > --- PROPULSION ------- Wheel Wheel > --- UTILITY ---------- Small Storage Unit Trap Extractor > --- WEAPON ----------- Beam Rifle Particle Gun > --- INVENTORY -------- Medium Matter Pod Light Armor Plating Light Armor Plating Hacking Suite Tractor Beam Trap Extractor Trap Extractor Trap Extractor [Rating: 13] Favorites ----------- Power Ion Engine Engine Ion Engine Power Core Light Nuclear Core Propulsion Wheel Wheel Wheel Utility Small Storage Unit Device Seismic Detector Storage Small Storage Unit Protection Light Armor Plating Weapon Beam Rifle Energy Gun Beam Rifle Build | -11 -10 -10 -10 ------- Run | Yrd Mat Min Sub Slots Evolved . | . . . . Power . | . . . . Propulsion . | . . . . Utility . | . . . . Weapon . | . . . . Parts Attached 20 | 7 9 . 4 Power 3 | 1 1 . 1 Engine 2 | 1 1 . . Core 1 | . . . 1 Reactor . | . . . . Propulsion 6 | 2 3 . 1 Treads . | . . . . Leg . | . . . . Wheel 6 | 2 3 . 1 Hover . | . . . . Flight . | . . . . Utility 4 | 2 1 . 1 Device 2 | 1 . . 1 Storage 1 | 1 . . . Processor . | . . . . Hackware . | . . . . Protection 1 | . 1 . . Artifact . | . . . . Weapon 7 | 2 4 . 1 Energy Gun 7 | 2 4 . 1 Energy Cannon . | . . . . Ballistic Gun . | . . . . Ballistic Cannon . | . . . . Launcher . | . . . . Special Weapon . | . . . . Impact Weapon . | . . . . Slashing Weapon . | . . . . Piercing Weapon . | . . . . Special Melee Weapon . | . . . . Unidentified Prototypes . | . . . . Parts Lost 4 | . 2 . 2 Power 1 | . 1 . . Propulsion 1 | . . . 1 Utility 1 | . . . 1 Weapon 1 | . 1 . . Highest Loss Streak 1 | . 1 . 1 To Critical Strikes . | . . . . Average Backups 7 | 2 7 8 8 Power . | 1 . . . Propulsion . | . . . . Utility 6 | . 5 8 8 Weapon . | . 1 . . Tool/Special . | . . . . Unused Backups 11 | . 4 . 7 Power 1 | . 1 . . Propulsion 1 | . 1 . . Utility 8 | . 1 . 7 Weapon 1 | . 1 . . Tool/Special . | . . . . Average Slot Usage (%) 97 | . 97 100 98 Engine 9 | . 11 14 6 Core 2 | . . . 7 Wheel 27 | . 28 28 26 Device 6 | . 12 . . Storage 14 | . 14 14 14 Protection 7 | . 2 14 13 Energy Gun 28 | . 28 28 28 Peak Build Rating 13 | 7 10 10 13 Average Rating 9 | 5 9 10 11 On Entrance 6 | . 7 10 10 Avg Prop Armor Cover (%) . | . . . . Naked Turns . | . . . . Heaviest Build 19 | 14 17 17 19 Greatest Support 20 | 20 20 20 20 Greatest Overweight (x) 1 | . . . 1 Average Overweight (x) . | . . . . Largest Inventory Capacity 8 | 8 8 8 8 Average Capacity 7 | 7 8 8 8 Most Carried 8 | 5 8 8 8 Average Carried 7 | 2 7 8 8 Final Capacity 8 | 8 8 8 8 Final Carried 8 | 3 8 8 8 Class Distribution -------------------- 84% | Mutant 15% | Scavenger-Mutant Dominant Class ---------------- Mutant | -10/Materials Mutant | -10/Mines Mutant | -10/Subcaves Resources | -11 -10 -10 -10 ----------- Run | Yrd Mat Min Sub Matter Collected 480 | 240 220 . 20 Remotely . | . . . . Salvage Created 834 | 158 580 . 96 Parts 52 | 15 32 . 5 Haulers Intercepted 1 | . 1 . . Recyclers Shooed . | . . . . Parts Field Recycled . | . . . . Retrieved Matter . | . . . . Parts Self-Destructed 5 | . . . 5 Prevented . | . . . . Parts Restored . | . . . . Kills | -11 -10 -10 -10 ------- Run | Yrd Mat Min Sub Combat Hostiles Destroyed 13 | . 11 . 2 Guns 13 | . 11 . 2 Classes Destroyed 8 | 3 5 . . Worker 4 | 1 3 . . Tunneler 4 | 4 . . . Hauler 1 | . 1 . . Recycler 1 | 1 . . . Operator 2 | . 2 . . Watcher 1 | . 1 . . Swarmer 2 | . 2 . . Grunt 11 | . 9 . 2 Best Kill Streak 5 | 3 5 . 2 Combat Bots Only 3 | . 3 . 2 Max Kills in Single Turn 2 | 1 2 . 1 Gunslinging . | . . . . Exploded . | . . . . Melee . | . . . . Uniques/NPCs Destroyed . | . . . . Combat | -11 -10 -10 -10 -------- Run | Yrd Mat Min Sub Hostile Shots Fired 79 | . 53 . 26 Missed 15 | . 11 . 4 Hits 64 | . 42 . 22 Projectile 64 | . 42 . 22 Critical Strikes 1 | . . . 1 Damage Taken 842 | . 426 . 416 Core 260 | . 117 . 143 Absorbed by Shields . | . . . . Core Remaining (%) 100 | 100 . . . Volleys Fired 76 | 14 48 1 13 Largest 2 | 2 2 2 2 Hottest 121 | 80 112 112 121 Shots Fired 145 | 28 93 2 22 Gun 145 | 28 93 2 22 Cannon . | . . . . Launcher . | . . . . Special . | . . . . Kinetic . | . . . . Thermal 131 | 14 93 2 22 Explosive . | . . . . Electromagnetic 14 | 14 . . . Robot Hit Streak 12 | 8 12 . 9 Robot Miss Streak 8 | 4 8 . 2 Penetration Max . | . . . . Secondary Targets 2 | . 1 . 1 Max Gunslinging Chain 1 | . 1 . 1 Shots Hit Robots 81 | 20 44 . 17 Core Hits 35 | 7 25 . 3 Critical Kills . | . . . . Critical Parts Destroyed . | . . . . Critical Strikes 1 | . . . 1 Burn 1 | . . . 1 Melee Attacks . | . . . . Impact . | . . . . Slashing . | . . . . Piercing . | . . . . Sneak Attacks . | . . . . Combat Hostiles . | . . . . Follow-up Attacks . | . . . . Damage Inflicted 1296 | 268 776 . 252 Guns 1264 | 236 776 . 252 Cannons . | . . . . Explosions 32 | 32 . . . Melee . | . . . . Ramming . | . . . . Kinetic . | . . . . Thermal 1166 | 138 776 . 252 Explosive . | . . . . Electromagnetic 130 | 130 . . . Impact . | . . . . Slashing . | . . . . Piercing . | . . . . Highest Corruption . | . . . . Average Corruption . | . . . . Corruption Purged . | . . . . Corruption Blocked . | . . . . Overload Shots . | . . . . Overflow Damage . | . . . . Projectiles . | . . . . Explosions . | . . . . Melee . | . . . . Knockbacks . | . . . . Impact . | . . . . Kinetic . | . . . . Secondary . | . . . . Self-Inflicted Damage . | . . . . Shots . | . . . . Rammed . | . . . . Targets Rammed . | . . . . Kicked . | . . . . Crushed . | . . . . Highest Temperature 436 | 144 436 60 69 Average Temperature 126 | 58 154 33 30 Received Heat Transfer 303 | . 156 . 147 Effects 4 | . 4 . . Shutdowns 1 | . 1 . . Energy Bleed 3 | . 3 . . Siege Activations . | . . . . Martial Activations . | . . . . Shielding Activations . | . . . . Robots Disrupted . | . . . . Combat Hostiles . | . . . . Robots Corrupted . | . . . . Combat Hostiles . | . . . . Parts Fried . | . . . . Impact Corruptions . | . . . . Robots Melted . | . . . . Combat Hostiles . | . . . . Parts Melted 3 | . 2 . 1 Heat Transferred 2964 | 300 1961 . 703 Parts Sabotaged . | . . . . Parts Stolen . | . . . . Parts Stripped . | . . . . Power Chain Reactions 1 | 1 . . . Alert | -11 -10 -10 -10 ------- Run | Yrd Mat Min Sub Maximum Alert Level . | . . . . Low Security (%) 100 | 100 100 100 . Level 1 . | . . . . Level 2 . | . . . . Level 3 . | . . . . Level 4 . | . . . . Level 5 . | . . . . High Security . | . . . . Max Security . | . . . . Peak Influence 159 | 10 159 52 . Initial 52 | . 3 52 . Average 48 | 2 58 46 . Influence Increases 431 | 30 351 . 50 Destroy 0b10 Robot/C 260 | . 220 . 40 Destroy 0b10 Robot/NC 65 | 30 35 . . Destroy Leader 74 | . 64 . 10 Destroy Structure 2 | . 2 . . Partial Spotted 15 | . 15 . . Lose Combat Pursuer 15 | . 15 . . Influence Decreases 431 | 25 220 104 82 Entered New Map 103 | . 2 84 17 Time Decay 262 | 25 152 20 65 Lost Part 20 | . 20 . . Purge Threat 46 | . 46 . . Squads Dispatched 4 | . 4 . . Investigation . | . . . . Extermination . | . . . . Reinforcement 4 | . 4 . . Assault . | . . . . Garrison . | . . . . Intercept . | . . . . Searches Triggered . | . . . . Construction Impeded . | . . . . Haulers Reinforced . | . . . . Active Scanning Responses . | . . . . Cargo Convoy Interrupts . | . . . . Stealth | -11 -10 -10 -10 --------- Run | Yrd Mat Min Sub Distress Signals 1 | . 1 . . Communications Jammed . | . . . . Distress Signals . | . . . . Times Spotted 28 | . 23 . 5 Peak Tracking Total 6 | . 6 . 3 Tactical Retreats 1 | . 1 . . Traps | -11 -10 -10 -10 ------- Run | Yrd Mat Min Sub Traps Triggered . | . . . . Indirectly . | . . . . Trap Hack Attempts . | . . . . Triggered . | . . . . Disarmed . | . . . . Reprogrammed . | . . . . Reused 1 | . . . 1 Traps Extracted . | . . . . Installed 1 | . . . 1 Triggered . | . . . . Most Traps Carried 1 | . . . 1 Machines | -11 -10 -10 -10 ---------- Run | Yrd Mat Min Sub Machines Disabled 1 | . 1 . . Max in Single Turn 1 | . 1 . . Machines Repaired . | . . . . Machines Dismantled . | . . . . Machines Sabotaged . | . . . . Overloaded Fab Kills . | . . . . Hacking | -11 -10 -10 -10 --------- Run | Yrd Mat Min Sub Machines Accessed 1 | . 1 . . Terminals 1 | . 1 . . Fabricators . | . . . . Repair Stations . | . . . . Recycling Units . | . . . . Scanalyzers . | . . . . Garrison Access . | . . . . Total Hacks 3 | . 3 . . Successful 1 | . 1 . . Failed 2 | . 2 . . Catastrophic . | . . . . Database Lockouts . | . . . . Manual . | . . . . Terminals 3 | . 3 . . Fabricators . | . . . . Repair Stations . | . . . . Recycling Units . | . . . . Scanalyzers . | . . . . Garrison Access . | . . . . Terminal Hacks 1 | . 1 . . Unreport Threat 1 | . 1 . . Fabricator Hacks . | . . . . Repair Station Hacks . | . . . . Recycling Unit Hacks . | . . . . Scanalyzer . | . . . . Garrison Access Hacks . | . . . . Unauthorized Hacks . | . . . . Terminals . | . . . . Fabricators . | . . . . Repair Stations . | . . . . Recycling Units . | . . . . Scanalyzers . | . . . . Garrison Access . | . . . . Data Cores Recovered . | . . . . Used . | . . . . Hacking Detections 1 | . 1 . . Full Trace Events . | . . . . Feedback Events . | . . . . Feedback Blocked . | . . . . Robot Schematics Acquired . | . . . . Robots Built . | . . . . Authchips . | . . . . Time . | . . . . Total Robot Build Rating . | . . . . Part Schematics Acquired . | . . . . Parts Built . | . . . . Authchips . | . . . . Time . | . . . . Total Part Build Rating . | . . . . Part Studies Acquired . | . . . . Parts Repaired . | . . . . Time . | . . . . Parts Recycled . | . . . . Recycled Matter . | . . . . Retrieved Matter . | . . . . Retrieved Components . | . . . . Parts Scanalyzed . | . . . . Part Schematics Acquired . | . . . . Parts Damaged . | . . . . Bothacking | -11 -10 -10 -10 ------------ Run | Yrd Mat Min Sub Used RIF Installer . | . . . . Robots Hacked . | . . . . Non-combat . | . . . . Combat . | . . . . Robot Hacks Applied . | . . . . Relay Couplers Released . | . . . . Fabnet Peak Effective % . | . . . . Robots Rewired . | . . . . Allies Hacked . | . . . . Hacks Repelled . | . . . . Allies | -11 -10 -10 -10 -------- Run | Yrd Mat Min Sub Total Allies . | . . . . Largest Group . | . . . . Highest-Rated Group . | . . . . Highest-Rated Ally . | . . . . Total Orders . | . . . . Ally Attacks . | . . . . Total Damage . | . . . . Kills . | . . . . Allies Corrupted . | . . . . Allies Melted . | . . . . Intel | -11 -10 -10 -10 ------- Run | Yrd Mat Min Sub Active Infowar (turns) 503 | 27 476 . . Seismic 503 | 27 476 . . Robot Analysis Total . | . . . . Derelict Logs Recovered 1 | . . . 1 Drone Launches . | . . . . Drone Recoveries . | . . . . Exploration | -11 -10 -10 -10 ------------- Run | Yrd Mat Min Sub Turns Passed 1070 | 109 552 41 368 Spaces Moved 750 | 72 323 13 342 Core 22 | 22 . . . Treads . | . . . . Legs . | . . . . Wheels 728 | 50 323 13 342 Hover . | . . . . Flight . | . . . . Fastest Speed 50 | 50 80 80 80 Average Speed 79 | 70 80 80 80 Slowest Speed 95 | 80 80 80 95 Overloaded Moves . | . . . . Propulsion Burnouts . | . . . . Robots Hopped . | . . . . Potential Cave-ins . | . . . . Cave-ins Triggered . | . . . . Exploration Rate (%) 19 | 4 46 4 23 Regions Visited 3 Branch Regions 2 Pre-discovered Areas 1 | . . . 1 Known Exits Taken . | . . . . Unknown Exits Taken 3 | 1 1 1 . Scrap Searched . | . . . . Spaces Dug . | . . . . Terrain Destroyed 3 | 3 . . . Melee . | . . . . Projectile . | . . . . AOE 3 | 3 . . . Terrain Rammed . | . . . . Walls Destroyed . | . . . . Machines Disabled . | . . . . Actions | -11 -10 -10 -10 --------- Run | Yrd Mat Min Sub Total 1079 | 100 527 41 411 Wait 197 | . 124 28 45 Move 747 | 71 322 12 342 Hop . | . . . . Pick Up 20 | 8 12 . . Fast Attach 5 | 2 3 . . Attach 6 | 5 1 . . Detach . | . . . . Swap 12 | . 5 . 7 Drop 15 | . 12 . 3 Fire 76 | 14 48 1 13 Melee . | . . . . Ram . | . . . . Kick . | . . . . Crush . | . . . . Escape Stasis . | . . . . Rewire . | . . . . Trap 1 | . . . 1 Miscellaneous . | . . . . Route ------- -11/Scrapyard -10/Materials (discovered 2 exits: [*Mat] / [*Min]) -10/Mines -10/Subcaves History --------- Turn | Location | Event 5 | -11/Scrapyard | Discovered new exit (range 16) 110 | -11/Scrapyard | Entered Materials 227 | -10/Materials | Discovered new exit (range 9) 324 | -10/Materials | Build established: Mutant 369 | -10/Materials | Discovered new exit (range 9) 662 | -10/Materials | Entered Mines 663 | -10/Mines | Assembled infested the area 702 | -10/Mines | Discovered new exit (range 3) 703 | -10/Mines | Entered Subcaves 704 | -10/Subcaves | Approached by a straggling Scientist 769 | -10/Subcaves | Learned 8 Materials zone layouts 911 | -10/Subcaves | Learned location of Zion (-7) 911 | -10/Subcaves | Met a Zionite searching for "candidates" 1027 | -10/Subcaves | Core integrity fell below 50% 1037 | -10/Subcaves | Core integrity fell below 20% 1071 | -10/Subcaves | Destroyed by XQ-2DY(R) with Subdweller Laser Last Messages --------------- might I suggest a trip to Zion?" World map updated: -7/Zion. 00947_ WY-3CU(u) builds Twisted Machinery. 39-T5A(c): "I think it's somewhere southwest of here" 01000_ Acquired 10 matter. 01003_ Dropped Wheel. 01006_ Trap Extractor collected Shrapnel Trap. 01006_ Subatomizers dissect the Wheel. 39-T5A(c): "I think it's somewhere southwest of here" 01017_ XQ-2DY(R): "SUBHATE!" 01023_ VA-XO8(R) emerges from the Twisted Machinery. 01030_ Wheel destroyed. 01033_ Trap Extractor dropped Shrapnel Trap. 01033_ Installed Shrapnel Trap. 01034_ Subatomizers dissect the Wheel. 39-T5A(c): "I think it's somewhere west of here" 01069_ Lgt. Armor Plating destroyed. Map ----- +----------------------------------------------------+ | ????????????????# ## % #?????????????? | | ????????????????### ## #?????????????? | | ??????????????????# ##### ##?????????????? | | ??????????????????# #???## #??????????????? | | ??????????????????# ##???## #??????????????? | | ??????????????????# ###### #??????????????? | | ?????????????????## ## #??????????????? | | ????????????????## ### #??????????????? | | ????????????????# #####?????????????? | | ??????#?????????# ### ## #?????????????? | | ??????? ????????# ### ##?# #?????????????? | | ??????? ????????###??####??# #?????????????? | | ???????# ??????????????##### #?????????????? | | ??????## ??????????????# ## #?????????????? | | ??????# ?????????????## #?????????????? | | ??????# ????????????# #####?????????????? | | ??????# ????????????# #?????????????????? | | ?????## #??????????## ##?????????????????? | | ???### ########### #??????????????????? | | ???#"" # # ##?????????????????? | | "##"" =# #?????????????????? | | ^ % ##?????????????????? | | # ## #??????????????????? | | " #### #####??????????????? | | " "" #??## ##RR #??????????????? | | " ""## ##???#####@ #??????????????? | | " ??#### #????????## ##??????????????? | | "??????# #?????????# ##???????????????? | | ? " ??????? ?????????## #????????????????? | | ??????????" ?????????# #????????????????? | | ?????????#"" ?????????# #????????????????? | | ?????????# "" ???????? #????????????????? | | ?????????# " #???????? #????????????????? | | ?????????"" ##????????# #????????????????? | | ?????????? ##?????????## #????????????????? | | ??????????? ##???????????? #????????????????? | | ????????????##?????????????? ????????????????? | | ???????????????????????????? %????????????????? | | ???????????????????????????? #???????????????? | | ???????????????????????????? ##???????????????? | | ???????????????????????????? #????????????????? | | ???????????????????????????? ??????????????????? | | ????????????????????????????????????????????????? | | ????????????????????????????????????????????????? | | ????????????????????????????????????????????????? | | ????????????????????????????????????????????????? | | ????????????????????????????????????????????????? | | ????????????????????????????????????????????????? | | ????????????????????????????????????????????????? | | ????????????????????????????????????????????????? | +----------------------------------------------------+ Best States ------------- Heat Dissipation 25 Energy Generation 14 Energy Capacity 250 Matter Stores 300 Matter Capacity 300 Sight Range 16 Terrain Scan Density 10 Armor Coverage 150 Evasion (%) 50 Item Schematics ----------------- None Robot Schematics ------------------ None Fabricated ------------ Nothing Repaired ---------- Nothing Studied --------- None Alien Tech Used ----------------- None Achievements -------------- None Challenges ------------ None Game ------ Seed ColdExoskeletonClaws Manual? 0 Play Time 00:08:19 Cumulative 717.0 hours Start 2026.02.21 @ 14:16:49 End 2026.02.21 @ 14:37:46 Sessions 2 Manual Loads 0 Difficulty Rogue Special Mode None Game No. 892 Rogue 892 Adventurer 0 Explorer 0 Win Type - Total 28 Types 14/1/4/3/2/0/2/2/0/0 Lore% 96 Gallery% 92 Achievement% 83 Wizard Run 0 Options --------- Layout 2 ASCII 0 Keyboard 0 Movement Mouse Keybinds 0 Fullscreen 2 Font 24/Tamsyn Map View 50x49 Zoom Use 0% Tactical HUD 1 Map Filters NONE Filters NONE Steam 1 RUN: a1b00970-dd9f-43b0-a61f-3f75b2ca98a0